bitfinex/quotes_BTCUSD_20241117
["timestamp","ask_amount","ask_price","bid_price","bid_amount"]
[1731845635039,0.10906255,90825.0,90813.0,0.0471]
[1731845635543,0.00688339,90824.0,90813.0,0.267332]
[1731845635754,0.00688339,90824.0,90814.0,0.22023]
[1731845635969,0.110107,90821.0,90813.0,0.0471]
[1731845636177,0.110106,90821.0,90815.0,0.110113]
[1731845636416,0.110106,90821.0,90815.0,0.110112]
[1731845636635,0.11011,90818.0,90813.0,0.157215]
[1731845636880,0.110109,90819.0,90814.0,0.110114]
[1731845637540,0.110108,90820.0,90814.0,0.110114]
[1731845637749,0.110105,90822.0,90817.0,0.11011]
[1731845638624,0.00688328,90821.0,90820.0,0.110107]
[1731845638888,0.1652137,90827.0,90817.0,0.220223]
[1731845639096,0.1652137,90827.0,90823.0,0.110104]
[1731845639559,0.110097,90829.0,90823.0,0.110104]
[1731845639812,0.220189,90832.0,90824.0,0.00402707]
[1731845640026,0.110099,90827.0,90824.0,0.00402707]
[1731845640282,0.110099,90827.0,90822.0,0.110105]
[1731845640506,0.110099,90827.0,90825.0,0.00402561]
[1731845640721,0.0008563,90834.0,90823.0,0.110104]
[1731845640930,0.110099,90827.0,90821.0,0.110106]
[1731845641167,0.110101,90825.0,90824.0,0.00402853]
[1731845641387,0.110105,90823.0,90817.0,0.110111]
[1731845641639,0.110102,90825.0,90824.0,0.00402462]
[1731845641886,0.220191,90830.0,90815.0,0.0754]
[1731845642103,0.10906255,90829.0,90815.0,0.0754]
[1731845642315,0.110109,90819.0,90815.0,0.0754]
[1731845642526,0.10906255,90829.0,90815.0,0.0754]
[1731845642738,0.110112,90817.0,90815.0,0.0754]
[1731845642963,0.110109,90819.0,90815.0,0.0754]
[1731845643340,0.22021,90823.0,90815.0,0.0754]
[1731845643438,0.220213,90821.0,90815.0,0.0754]
[1731845643926,0.110115,90814.0,90813.0,0.0471]
[1731845644155,0.110115,90814.0,90792.0,0.0017128]
[1731845644156,0.10906255,90820.0,90803.0,0.0485]
[1731845644373,0.10906255,90820.0,90806.0,0.1652137]
[1731845644622,0.10906255,90820.0,90801.0,0.0017126]
[1731845644623,0.1652137,90817.0,90801.0,0.0017126]
[1731845644888,0.110129,90802.0,90801.0,0.03896202]
[1731845645149,0.220256,90804.0,90788.0,0.220292]
[1731845645362,0.110133,90799.0,90794.0,0.133138]
[1731845645602,0.22024,90810.0,90788.0,0.03782392]
[1731845645823,0.0755,90811.0,90788.0,0.03782392]
[1731845645824,0.220274,90796.0,90788.0,0.03782392]
[1731845646053,0.10906255,90809.0,90791.0,0.220286]
[1731845646276,0.10906255,90809.0,90793.0,0.220278]
[1731845646277,0.1652137,90808.0,90793.0,0.220278]
[1731845646518,0.1652137,90808.0,90788.0,0.005]
[1731845646704,0.110129,90803.0,90797.0,0.110135]
[1731845646940,0.1652137,90808.0,90791.0,0.220286]
[1731845647212,0.220247,90807.0,90791.0,0.220286]
[1731845647425,0.110128,90803.0,90793.0,0.220281]
[1731845647665,0.110128,90803.0,90798.0,0.110133]
[1731845648129,0.110116,90813.0,90807.0,0.110122]
[1731845648352,0.005,90836.0,90795.0,0.0792]
[1731845648353,0.2457137,90828.0,90795.0,0.0792]
[1731845648602,0.2457137,90828.0,90798.0,0.220269]
[1731845648603,0.110118,90812.0,90798.0,0.220269]
[1731845648835,0.110129,90803.0,90798.0,0.023]
[1731845649056,0.27427625,90818.0,90799.0,0.023]
[1731845649287,0.220255,90804.0,90791.0,0.005]
[1731845649538,0.0755,90809.0,90794.0,0.110138]
[1731845649539,0.220257,90803.0,90794.0,0.110138]
[1731845649831,0.220257,90803.0,90795.0,0.110137]
[1731845649832,0.110132,90800.0,90795.0,0.110137]
[1731845650039,0.110131,90801.0,90794.0,0.220278]
[1731845650261,0.220257,90803.0,90794.0,0.220278]
[1731845650512,0.220249,90806.0,90797.0,0.110135]
[1731845650726,0.11013,90802.0,90797.0,0.110135]
[1731845650942,0.10906255,90812.0,90792.0,0.023]
[1731845651167,0.220214,90821.0,90793.0,0.0072027]
[1731845651384,0.110108,90820.0,90814.0,0.110114]
[1731845651631,0.1652137,90828.0,90817.0,0.110111]
[1731845651632,0.220198,90827.0,90817.0,0.110111]
[1731845651842,0.110101,90826.0,90816.0,0.0794]
[1731845652062,0.220198,90827.0,90820.0,0.110107]
[1731845652063,0.110102,90825.0,90820.0,0.110107]
[1731845652299,0.220198,90827.0,90818.0,0.110109]
[1731845652519,0.04138366,90843.0,90816.0,0.0794]
[1731845652520,0.220186,90832.0,90816.0,0.0794]
[1731845652746,0.110095,90831.0,90825.0,0.110101]
[1731845652997,0.110095,90831.0,90817.0,0.0486]
[1731845652998,0.11009,90835.0,90829.0,0.110096]
[1731845653210,0.11009,90835.0,90817.0,0.2138137]
[1731845653211,0.110092,90833.0,90828.0,0.110097]
[1731845653432,0.110092,90833.0,90830.0,0.00404925]
[1731845653668,0.110093,90832.0,90826.0,0.110099]
[1731845653943,0.220174,90837.0,90827.0,0.110098]
[1731845654185,0.1109473,90834.0,90827.0,0.11414871]
[1731845654391,0.1109473,90834.0,90829.0,0.110096]
[1731845654840,0.1109473,90834.0,90830.0,0.00406625]
[1731845655101,0.12655704,90833.0,90830.0,0.00406625]
[1731845655312,0.0008563,90834.0,90825.0,0.220203]
[1731845655313,0.01646504,90832.0,90826.0,0.1101]
[1731845655547,0.01646504,90833.0,90831.0,0.00406479]
[1731845655799,0.01646504,90832.0,90820.0,0.220215]
[1731845656028,0.01646504,90833.0,90832.0,0.11415633]
[1731845656266,0.0008563,90834.0,90833.0,0.110092]
[1731845656765,0.0008563,90834.0,90833.0,0.11414289]
[1731845656996,0.1109463,90834.0,90833.0,0.00405089]
[1731845657234,0.0008563,90834.0,90829.0,0.110096]
[1731845657471,0.0008563,90834.0,90819.0,0.10906255]
[1731845657686,0.0008563,90834.0,90830.0,0.00405526]
[1731845657687,0.110092,90833.0,90830.0,0.00405526]
[1731845657915,0.0008563,90834.0,90828.0,0.110097]
[1731845658118,0.0008563,90834.0,90824.0,0.220206]
[1731845658119,0.0008563,90834.0,90831.0,0.00405235]
[1731845658384,0.0008563,90834.0,90825.0,0.353304]
[1731845658600,0.01028631,90833.0,90826.0,0.220201]
[1731845658845,0.0008563,90834.0,90833.0,0.110092]
[1731845659072,0.01114242,90834.0,90833.0,0.212492]
[1731845659316,0.01114242,90834.0,90833.0,0.37108692]
[1731845659533,0.01114242,90834.0,90833.0,0.48294788]
[1731845659766,0.01114242,90834.0,90833.0,0.47794788]
[1731845660013,0.01114242,90834.0,90833.0,0.84665325]
[1731845660258,0.01114242,90834.0,90833.0,0.47794788]
[1731845660485,0.01114242,90834.0,90833.0,0.66348224]
[1731845660708,0.01114242,90834.0,90833.0,1.03203375]
[1731845661158,0.01114242,90834.0,90833.0,0.52074287]
[1731845662359,0.01114242,90834.0,90833.0,0.61916816]
[1731845663218,0.00314242,90834.0,90833.0,0.52074287]
[1731845664138,0.00314242,90834.0,90833.0,0.66848224]
[1731845664370,0.00314242,90834.0,90833.0,0.52074287]
[1731845664604,0.000857,90840.0,90839.0,0.01]
[1731845664822,0.000857,90840.0,90839.0,0.35214655]
[1731845665031,0.000857,90840.0,90839.0,0.48133062]
[1731845666006,0.1652137,90852.0,90851.0,0.36827]
[1731845666228,0.1652137,90852.0,90851.0,0.47733255]
[1731845666462,0.1652137,90882.0,90856.0,0.368264]
[1731845666690,0.1652137,90882.0,90856.0,0.47732655]
[1731845667153,0.1652137,90882.0,90856.0,0.48125844]
[1731845667610,0.2208706,90904.0,90885.0,0.110029]
[1731845667861,0.220016,90903.0,90885.0,0.110029]
[1731845668086,0.220016,90903.0,90885.0,0.11387321]
[1731845668087,0.1652137,90902.0,90885.0,0.11387321]
[1731845668318,0.1652137,90902.0,90885.0,0.13687321]
[1731845669002,0.3852327,90902.0,90885.0,0.02684421]
[1731845669256,0.220032,90896.0,90885.0,0.13687321]
[1731845669475,0.110017,90895.0,90885.0,0.13687321]
[1731845670150,0.3852327,90902.0,90885.0,0.13687321]
[1731845670377,0.110015,90897.0,90885.0,0.13687321]
[1731845670621,0.3852327,90902.0,90885.0,0.13687321]
[1731845670837,0.110013,90898.0,90885.0,0.13687321]
[1731845671955,0.110014,90897.0,90885.0,0.13687321]
[1731845672171,0.22003,90897.0,90885.0,0.00384421]
[1731845672394,0.110024,90889.0,90885.0,0.00384421]
[1731845672616,0.110024,90889.0,90878.0,0.1]
[1731845672617,0.110024,90889.0,90884.0,0.0367601]
[1731845672838,0.110024,90889.0,90885.0,0.00385691]
[1731845673562,0.220043,90892.0,90880.0,0.1]
[1731845673563,0.440086,90892.0,90880.0,0.1]
[1731845673774,0.1652137,90891.0,90885.0,0.00385691]
[1731845674007,0.11003,90884.0,90880.0,0.1]
[1731845674223,0.0017136,90886.0,90880.0,0.1]
[1731845674462,0.0017136,90886.0,90878.0,0.03733407]
[1731845674463,0.110031,90884.0,90878.0,0.03733407]
[1731845674682,0.0017136,90886.0,90881.0,0.00385286]
[1731845674915,0.220065,90882.0,90874.0,0.1652137]
[1731845675134,0.22006,90884.0,90874.0,0.1652137]
[1731845675348,0.110039,90877.0,90875.0,0.00385577]
[1731845676276,0.110039,90877.0,90869.0,0.110048]
[1731845676514,0.110039,90877.0,90870.0,0.110047]
[1731845676728,0.220063,90883.0,90872.0,0.110044]
[1731845676945,0.220063,90883.0,90870.0,0.00385577]
[1731845677164,0.0008562,90884.0,90877.0,0.1652137]
[1731845677395,0.0008562,90884.0,90878.0,0.110037]
[1731845677627,0.0008562,90884.0,90879.0,0.110035]
[1731845677858,0.0008562,90884.0,90879.0,0.11389507]
[1731845678117,0.0008562,90884.0,90879.0,0.00386007]
[1731845678330,0.1652137,90890.0,90879.0,0.00386007]
[1731845678331,0.11003,90885.0,90879.0,0.00386007]
[1731845678541,0.1597835,90890.0,90873.0,0.023]
[1731845678791,0.220053,90887.0,90880.0,0.00385861]
[1731845679004,0.11003,90885.0,90875.0,0.023]
[1731845679226,0.110033,90882.0,90875.0,0.13304]
[1731845679671,0.220048,90889.0,90876.0,0.00386152]
[1731845679890,0.110031,90883.0,90876.0,0.110039]
[1731845680131,0.110038,90878.0,90871.0,0.110045]
[1731845680347,0.110038,90878.0,90877.0,0.00388334]
[1731845680348,0.110037,90878.0,90877.0,0.00388334]
[1731845680586,0.26884605,90890.0,90865.0,0.03813539]
[1731845681062,0.26884605,90890.0,90858.0,0.220123]
[1731845681063,0.1652137,90880.0,90856.0,0.0492]
[1731845681066,0.0791,90887.0,90852.0,0.0764]
[1731845681067,0.110037,90878.0,90877.0,0.00387407]
[1731845681320,0.110037,90878.0,90866.0,0.1652137]
[1731845681321,0.11005,90867.0,90866.0,0.1652137]
[1731845681537,0.0467,90882.0,90866.0,0.1652137]
[1731845681774,0.110047,90870.0,90866.0,0.00388297]
[1731845682003,0.110047,90870.0,90863.0,0.110055]
[1731845682254,0.110047,90870.0,90867.0,0.00388588]
[1731845682496,0.110055,90864.0,90857.0,0.110062]
[1731845682728,0.220082,90875.0,90868.0,0.00389237]
[1731845682941,0.110049,90869.0,90861.0,0.110057]
[1731845683156,0.220088,90873.0,90862.0,0.1652137]
[1731845683392,0.220088,90873.0,90862.0,0.00389764]
[1731845683623,0.10906255,90879.0,90862.0,0.00389764]
[1731845683624,0.330112,90878.0,90862.0,0.00389764]
[1731845683838,0.110052,90866.0,90862.0,0.00389764]
[1731845684071,0.110052,90866.0,90859.0,0.21006]
[1731845684284,0.110052,90866.0,90863.0,0.00389181]
[1731845684502,0.110052,90866.0,90861.0,0.1]
[1731845684764,0.110052,90866.0,90864.0,0.00389036]
[1731845684991,0.110052,90866.0,90861.0,0.1]
[1731845685202,0.110053,90866.0,90865.0,0.0038889]
[1731845685648,0.110053,90866.0,90860.0,0.1]
[1731845685867,0.110053,90866.0,90865.0,0.0038889]
[1731845686105,0.110053,90866.0,90860.0,0.1]
[1731845686106,0.110053,90866.0,90861.0,0.00352236]
[1731845686322,0.0008566,90904.0,90868.0,0.110049]
[1731845686564,0.1652137,90880.0,90857.0,0.0687]
[1731845686779,0.1652137,90880.0,90871.0,0.110045]
[1731845686780,0.110038,90878.0,90871.0,0.110045]
[1731845686987,0.1652137,90880.0,90864.0,0.023]
[1731845687218,0.1652137,90880.0,90872.0,0.11367619]
[1731845687219,0.110036,90879.0,90872.0,0.11367619]
[1731845687432,0.440116,90885.0,90872.0,0.110043]
[1731845687655,0.220058,90885.0,90872.0,0.110043]
[1731845687876,0.110036,90879.0,90873.0,0.11367691]
[1731845688996,0.22006,90884.0,90873.0,0.00363491]
[1731845688997,0.110038,90878.0,90873.0,0.00363491]
[1731845689483,0.0008558,90886.0,90874.0,0.00363028]
[1731845689732,0.220079,90877.0,90866.0,0.110051]
[1731845689974,0.2209128,90886.0,90868.0,0.03785026]
[1731845690214,0.2209128,90886.0,90867.0,0.11005]
[1731845690215,0.2209128,90886.0,90867.0,0.11368902]
[1731845690439,0.110044,90873.0,90869.0,0.00364073]
[1731845690657,0.220073,90879.0,90864.0,0.023]
[1731845690900,0.220089,90873.0,90870.0,0.00363]
[1731845691133,0.220089,90873.0,90862.0,0.03812983]
[1731845691134,0.10906255,90872.0,90862.0,0.03812983]
[1731845691392,0.10906255,90872.0,90830.0,0.0977008]
[1731845691393,0.110061,90858.0,90857.0,0.0017116]
[1731845692354,0.110061,90858.0,90831.0,0.110093]
[1731845692355,0.110087,90837.0,90831.0,0.110093]
[1731845692586,0.18846255,90858.0,90834.0,0.1652137]
[1731845692587,0.220173,90838.0,90834.0,0.1652137]
[1731845692823,0.110089,90835.0,90834.0,0.1652137]
[1731845693033,0.110091,90834.0,90823.0,0.03660523]
[1731845693293,0.0487,90854.0,90829.0,0.1652137]
[1731845693531,0.110086,90838.0,90824.0,0.1652137]
[1731845693767,0.10906255,90853.0,90830.0,0.00370969]
[1731845693982,0.110085,90839.0,90833.0,0.110091]
[1731845694424,0.110083,90841.0,90836.0,0.110088]
[1731845694661,0.220138,90852.0,90834.0,0.00368916]
[1731845694907,0.10906255,90853.0,90828.0,0.220194]
[1731845694908,0.22013,90855.0,90828.0,0.023]
[1731845695167,0.10906255,90854.0,90836.0,0.110087]
[1731845695404,0.110082,90842.0,90836.0,0.110087]
[1731845695618,0.110083,90841.0,90833.0,0.110091]
[1731845695836,0.110077,90846.0,90837.0,0.0037186]
[1731845696085,0.110076,90846.0,90839.0,0.110084]
[1731845696305,0.005,90863.0,90828.0,0.03683635]
[1731845696306,0.0766,90867.0,90838.0,0.0034833]
[1731845696520,0.0766,90867.0,90846.0,0.110075]
[1731845696521,0.1652137,90855.0,90846.0,0.110075]
[1731845696740,0.220133,90854.0,90844.0,0.110078]
[1731845696950,0.220106,90865.0,90847.0,0.00347832]
[1731845697204,0.110066,90854.0,90843.0,0.22016]
[1731845697442,0.110071,90850.0,90836.0,0.4670877]
[1731845697673,0.110071,90850.0,90844.0,0.110078]
[1731845697885,0.110071,90851.0,90840.0,0.220167]
[1731845698098,0.220133,90854.0,90839.0,0.220169]
[1731845698099,0.330202,90853.0,90845.0,0.00341232]
[1731845698332,0.11007,90851.0,90841.0,0.220164]
[1731845698540,0.110071,90851.0,90839.0,0.220169]
[1731845698773,0.11007,90851.0,90845.0,0.110077]
[1731845698996,0.110068,90853.0,90846.0,0.110075]
[1731845699220,0.110069,90852.0,90846.0,0.11354895]
[1731845699453,0.10906255,90864.0,90836.0,0.2469137]
[1731845699454,0.220116,90861.0,90847.0,0.00340562]
[1731845699691,0.220126,90857.0,90847.0,0.00340562]
[1731845699915,0.1652137,90858.0,90843.0,0.023]
[1731845700140,0.1652137,90858.0,90839.0,0.03752972]
[1731845700141,0.110068,90853.0,90848.0,0.00347978]
[1731845700385,0.110076,90846.0,90839.0,0.110084]
[1731845700635,0.220106,90865.0,90840.0,0.0017114]
[1731845700878,0.110066,90855.0,90840.0,0.0017114]
[1731845701109,0.220109,90864.0,90847.0,0.1652137]
[1731845701350,0.1652137,90858.0,90840.0,0.0017114]
[1731845701604,0.220106,90865.0,90840.0,0.0017114]
[1731845701605,0.110082,90841.0,90840.0,0.0017114]
[1731845702916,0.21914455,90841.0,90840.0,0.0017114]
[1731845703831,0.25578174,90841.0,90840.0,0.0017114]
[1731845704047,0.21914455,90841.0,90840.0,0.0017114]
[1731845705925,0.22602714,90841.0,90840.0,0.0017114]
[1731845706359,0.21914455,90841.0,90840.0,0.0017114]
[1731845708430,0.21114455,90841.0,90840.0,0.0017114]
[1731845709319,0.102082,90841.0,90840.0,0.0017114]
[1731845709541,0.21114455,90841.0,90840.0,0.0017114]
[1731845711309,0.26084455,90841.0,90840.0,0.0017114]
[1731845712433,0.27084455,90841.0,90840.0,0.0017114]
[1731845712642,0.35274455,90841.0,90840.0,0.0017114]
[1731845713324,0.35474455,90841.0,90840.0,0.0017114]
[1731845713590,0.39260516,90841.0,90840.0,0.0017114]
[1731845713839,0.110095,90830.0,90829.0,0.001712]
[1731845714049,0.22415755,90830.0,90829.0,0.001712]
[1731845714296,0.30605755,90830.0,90829.0,0.001712]
[1731845714774,0.30605755,90830.0,90829.0,0.00512209]
[1731845715038,0.30605755,90830.0,90829.0,0.001712]
[1731845715039,0.30105755,90830.0,90829.0,0.001712]
[1731845715279,0.30605755,90830.0,90829.0,0.001712]
[1731845715500,0.31105755,90830.0,90829.0,0.001712]
[1731845716155,0.36065755,90830.0,90829.0,0.001712]
[1731845716375,0.36265755,90830.0,90829.0,0.001712]
[1731845716626,0.36065755,90830.0,90829.0,0.001712]
[1731845718209,0.46265755,90830.0,90829.0,0.001712]
[1731845719122,0.46265755,90830.0,90816.0,0.0017124]
[1731845719123,0.194511,90817.0,90816.0,0.0017124]
[1731845719339,0.30657355,90817.0,90816.0,0.0017124]
[1731845719583,0.35617355,90817.0,90816.0,0.0017124]
[1731845719828,0.45617355,90817.0,90816.0,0.0017124]
[1731845720536,0.47460277,90817.0,90816.0,0.0017124]
[1731845720787,0.47460277,90817.0,90816.0,0.00028198]
[1731845720994,0.51233318,90817.0,90816.0,1e-08]
[1731845721292,0.62339573,90817.0,90816.0,1e-08]
[1731845721529,0.24214,90793.0,90792.0,0.0017124]
[1731845721765,0.45820255,90793.0,90792.0,0.0017124]
[1731845721972,0.50204166,90793.0,90792.0,0.0017124]
[1731845722902,0.51229841,90793.0,90792.0,0.0017124]
[1731845723348,0.50429841,90793.0,90792.0,0.0017124]
[1731845723567,0.54183149,90793.0,90792.0,0.0017124]
[1731845724912,0.54183149,90793.0,90792.0,0.0247124]
[1731845725384,0.54175012,90793.0,90792.0,0.0247124]
[1731845726050,0.54175012,90793.0,90792.0,0.0017124]
[1731845727403,4e-08,90770.0,90768.0,0.0017126]
[1731845727686,4e-08,90770.0,90769.0,0.0247132]
[1731845727687,0.16307704,90770.0,90769.0,0.0247132]
[1731845727868,0.26635727,90770.0,90769.0,0.0247132]
[1731845728328,0.24586739,90770.0,90769.0,0.0247132]
[1731845729216,0.25275516,90770.0,90769.0,0.0247132]
[1731845729427,0.27324504,90770.0,90769.0,0.0247132]
[1731845729654,0.27324504,90770.0,90769.0,0.0017132]
[1731845730331,0.24586739,90770.0,90769.0,0.0017132]
[1731845730987,0.24582163,90770.0,90769.0,0.0017132]
[1731845734776,0.24582163,90770.0,90769.0,0.0016659]
[1731845735858,0.13565363,90770.0,90754.0,0.05435004]
[1731845736070,0.22532,90777.0,90754.0,0.05435004]
[1731845736071,0.110179,90761.0,90760.0,0.1652137]
[1731845736329,0.02659108,90761.0,90754.0,0.05435004]
[1731845736556,0.22035,90765.0,90754.0,0.05435004]
[1731845736557,0.110185,90756.0,90754.0,0.05435004]
[1731845736785,0.22035,90765.0,90754.0,0.05435004]
[1731845737021,0.22035,90765.0,90750.0,0.270184]
[1731845737022,0.01023335,90764.0,90763.0,0.110177]
[1731845737262,0.01023335,90764.0,90763.0,0.158577]
[1731845737512,0.01023335,90764.0,90763.0,0.181577]
[1731845737716,0.0017132,90770.0,90761.0,0.220357]
[1731845737717,0.0017132,90770.0,90769.0,0.110169]
[1731845737944,0.01194836,90770.0,90769.0,0.158569]
[1731845738409,0.00394836,90770.0,90769.0,0.158569]
[1731845738672,0.01704556,90790.0,90769.0,0.158569]
[1731845738673,0.005,90807.0,90769.0,0.0484]
[1731845738936,0.01706552,90794.0,90788.0,0.110146]
[1731845739157,0.110136,90797.0,90788.0,0.110146]
[1731845739374,0.2753507,90796.0,90789.0,0.110144]
[1731845739585,0.110148,90787.0,90779.0,0.02760953]
[1731845739827,0.01638624,90786.0,90779.0,0.02760953]
[1731845740042,0.01638762,90785.0,90780.0,0.110155]
[1731845740274,0.110148,90787.0,90781.0,0.110154]
[1731845740558,0.110154,90782.0,90779.0,0.02760953]
[1731845740774,0.110153,90783.0,90779.0,0.02760953]
[1731845741011,0.110153,90783.0,90777.0,0.0484]
[1731845741012,0.110158,90778.0,90777.0,0.0484]
[1731845741213,0.11704389,90778.0,90777.0,0.0484]
[1731845741857,0.1652137,90784.0,90769.0,0.03677355]
[1731845742105,0.220305,90783.0,90767.0,0.0484]
[1731845742324,0.0170913,90785.0,90770.0,0.1652137]
[1731845742566,0.2471137,90806.0,90774.0,0.023]
[1731845742567,0.1652137,90794.0,90774.0,0.023]
[1731845742779,0.1652137,90784.0,90774.0,0.023]
[1731845742999,0.11015,90785.0,90775.0,0.2239183]
[1731845743264,0.1652137,90794.0,90776.0,0.023]
[1731845743509,0.005,90817.0,90776.0,0.023]
[1731845743510,0.1652137,90792.0,90779.0,0.005]
[1731845743743,0.1652137,90792.0,90776.0,0.02657928]
[1731845743972,0.1652137,90792.0,90773.0,0.1484]
[1731845743973,0.1652137,90792.0,90780.0,0.00358366]
[1731845744212,0.1652137,90792.0,90773.0,0.1484]
[1731845744213,0.1652137,90792.0,90777.0,0.00358804]
[1731845744492,0.12616434,90805.0,90789.0,0.110144]
[1731845744732,0.12616434,90805.0,90775.0,0.1652137]
[1731845744733,0.1652137,90795.0,90791.0,0.110142]
[1731845744945,0.10906255,90805.0,90791.0,0.0484]
[1731845744946,0.01710179,90805.0,90791.0,0.0484]
[1731845745183,0.110128,90803.0,90793.0,0.220281]
[1731845745397,0.1652137,90805.0,90799.0,0.110132]
[1731845745617,0.1652137,90805.0,90794.0,0.22385258]
[1731845745847,0.110121,90809.0,90800.0,0.22383075]
[1731845746095,0.1652137,90816.0,90792.0,0.0793]
[1731845746310,0.110118,90812.0,90795.0,0.00354603]
[1731845746521,0.11012,90810.0,90803.0,0.110127]
[1731845746960,0.220227,90815.0,90802.0,0.220259]
[1731845747185,0.11012,90810.0,90804.0,0.00352807]
[1731845747400,0.220227,90815.0,90803.0,0.00353509]
[1731845747401,0.110118,90812.0,90803.0,0.00353509]
[1731845747623,0.110118,90812.0,90806.0,0.110124]
[1731845747859,0.023,90809.0,90804.0,0.00353669]
[1731845748070,0.023,90809.0,90807.0,0.00353232]
[1731845748334,0.023,90812.0,90807.0,0.00353232]
[1731845748570,0.023,90812.0,90808.0,0.00352649]
[1731845748818,0.133121,90809.0,90808.0,0.00352649]
[1731845749067,0.01710179,90831.0,90799.0,0.220266]
[1731845749317,0.1652137,90826.0,90810.0,0.1]
[1731845749538,0.1652137,90826.0,90825.0,0.110101]
[1731845749985,0.23660092,90835.0,90825.0,0.11357875]
[1731845750198,0.01642192,90834.0,90832.0,0.110092]
[1731845750439,0.0008559,90840.0,90825.0,0.00347775]
[1731845750440,0.0008559,90840.0,90828.0,0.0452]
[1731845750645,0.1652137,90835.0,90828.0,0.0452]
[1731845750861,0.110096,90829.0,90828.0,0.0452]
[1731845751066,0.01025349,90829.0,90828.0,0.0452]
[1731845751506,0.01025349,90829.0,90828.0,0.155298]
[1731845751959,0.03325349,90829.0,90828.0,0.155298]
[1731845752429,0.023,90829.0,90828.0,0.155298]
[1731845752642,0.023,90837.0,90828.0,0.0452]
[1731845752852,0.023,90835.0,90830.0,0.110095]
[1731845753064,0.023,90833.0,90830.0,0.110095]
[1731845753282,0.023,90835.0,90830.0,0.110095]
[1731845753283,0.01023903,90832.0,90830.0,0.110095]
[1731845753530,0.023,90835.0,90830.0,0.110095]
[1731845753737,0.1652137,90838.0,90828.0,0.0452]
[1731845754158,0.110093,90833.0,90828.0,0.0452]
[1731845754369,0.11009,90835.0,90828.0,0.0452]
[1731845754811,0.000856,90846.0,90830.0,0.1652137]
[1731845755030,0.000856,90846.0,90828.0,0.0452]
[1731845755031,0.000856,90846.0,90831.0,0.00220175]
[1731845755233,0.000856,90846.0,90839.0,0.110084]
[1731845757750,0.000856,90846.0,90837.0,0.06039741]
[1731845757962,0.000856,90846.0,90839.0,0.110084]
[1731845759059,0.000856,90846.0,90839.0,0.210084]
[1731845760066,0.000856,90846.0,90839.0,0.21345978]
[1731845760859,0.000856,90846.0,90839.0,0.25106858]
[1731845763124,0.000856,90846.0,90839.0,0.36013113]
[1731845765851,0.000856,90846.0,90839.0,0.14098458]
[1731845766082,0.000856,90846.0,90839.0,0.04098458]
[1731845766346,0.110079,90844.0,90839.0,0.14098458]
[1731845766530,0.110079,90844.0,90839.0,0.25106858]
[1731845766980,0.110932,90846.0,90839.0,0.25106858]
[1731845767203,0.000856,90846.0,90839.0,0.25106858]
[1731845767925,0.000856,90846.0,90841.0,0.1]
[1731845768384,0.1652137,90848.0,90842.0,0.00336209]
[1731845768385,0.110078,90845.0,90842.0,0.00336209]
[1731845768801,0.220144,90850.0,90842.0,0.00336209]
[1731845769093,0.110075,90847.0,90842.0,0.00336209]
[1731845769303,0.550325,90855.0,90842.0,0.00336209]
[1731845769546,0.110076,90846.0,90842.0,0.00336209]
[1731845769972,0.0102285,90855.0,90842.0,0.00336209]
[1731845770189,0.110077,90846.0,90842.0,0.00336209]
[1731845771308,0.110077,90846.0,90841.0,0.1]
[1731845771532,0.110077,90846.0,90843.0,0.00336064]
[1731845771746,0.110077,90846.0,90842.0,0.00336209]
[1731845771969,0.11007,90851.0,90844.0,0.00335918]
[1731845772214,0.110067,90854.0,90843.0,0.00336064]
[1731845772424,0.0102439,90853.0,90849.0,0.110072]
[1731845772672,0.220128,90856.0,90844.0,0.269157]
[1731845772673,0.220128,90856.0,90846.0,0.220152]
[1731845772962,0.110062,90858.0,90852.0,0.110068]
[1731845773189,0.12030698,90857.0,90852.0,0.110068]
[1731845773402,0.110065,90855.0,90853.0,0.00336222]
[1731845773614,0.11007,90851.0,90845.0,0.110077]
[1731845773823,0.01024398,90854.0,90844.0,0.269157]
[1731845773824,0.220114,90862.0,90844.0,0.269157]
[1731845774051,0.1652137,90858.0,90845.0,0.110076]
[1731845774298,0.0766,90865.0,90847.0,0.110074]
[1731845774519,0.220121,90859.0,90848.0,0.110072]
[1731845774723,0.11007,90851.0,90848.0,0.00337096]
[1731845774931,0.1652137,90858.0,90848.0,0.00337096]
[1731845775133,0.110081,90843.0,90836.0,0.110087]
[1731845775395,0.110081,90842.0,90841.0,0.2652137]
[1731845775650,0.110081,90842.0,90841.0,0.1]
[1731845775898,0.01026418,90842.0,90841.0,0.10335772]
[1731845776335,0.110077,90846.0,90841.0,0.10335772]
[1731845776336,0.110077,90846.0,90842.0,0.1]
[1731845776789,0.01026959,90845.0,90843.0,0.00336064]
[1731845777026,0.01026959,90844.0,90843.0,0.00336064]
[1731845777486,0.12034759,90844.0,90843.0,0.00336064]
[1731845777915,0.01026959,90844.0,90843.0,0.11008]
[1731845778150,0.01026959,90844.0,90843.0,0.00335772]
[1731845778562,0.12034759,90844.0,90843.0,0.00335772]
[1731845778770,0.01026959,90844.0,90843.0,0.00335772]
[1731845779331,0.01026959,90844.0,90841.0,0.220164]
[1731845779444,0.01026959,90844.0,90843.0,0.11343772]
[1731845779671,0.01029382,90844.0,90843.0,0.11008]
[1731845779910,0.01029382,90844.0,90843.0,0.11343772]
[1731845781244,0.01029382,90844.0,90843.0,0.00335682]
[1731845781687,0.01029382,90844.0,90843.0,0.11008]
[1731845781911,0.01029382,90844.0,90843.0,0.11322696]
[1731845782782,0.22014,90851.0,90843.0,0.00314696]
[1731845783326,0.110071,90850.0,90844.0,0.110078]
[1731845783536,0.110071,90850.0,90844.0,0.11323503]
[1731845783746,0.220133,90854.0,90844.0,0.11323503]
[1731845783963,0.110072,90850.0,90844.0,0.11323503]
[1731845784181,0.220138,90852.0,90844.0,0.11323503]
[1731845784414,0.110072,90850.0,90844.0,0.11323503]
[1731845784642,0.110072,90850.0,90844.0,0.00315703]
[1731845784861,0.110072,90850.0,90845.0,0.110077]
[1731845785100,0.220116,90862.0,90845.0,0.110077]
[1731845785101,0.11006,90859.0,90853.0,0.110067]
[1731845785308,0.11006,90859.0,90845.0,0.00315411]
[1731845785309,0.1652137,90857.0,90845.0,0.00315411]